bitfinex-derivatives/quotes_SOLF0:USTF0_20251122
["timestamp","ask_amount","ask_price","bid_price","bid_amount"]
[1763848007919,1.72037281,126.39,126.37,3.38454953]
[1763848011117,1.72037281,126.39,126.37,0.05454953]
[1763848011422,112.56447281,126.39,126.33,3.33]
[1763848011618,1.66854929,126.37,126.33,3.33]
[1763848011818,18.22854929,126.37,126.33,3.33]
[1763848012422,0.05232223,126.36,126.34,3.38196764]
[1763848013616,0.00232223,126.36,126.35,3.33]
[1763848013822,1.66854929,126.41,126.35,4.91]
[1763848014119,1.66854929,126.41,126.36,3.33]
[1763848014620,8.79294929,126.41,126.36,10.4568]
[1763848014822,0.05852955,126.4,126.37,3.38714407]
[1763848015524,7.18342955,126.4,126.37,3.38714407]
[1763848018429,0.05852955,126.4,126.37,3.38714407]
[1763848020929,7.18352955,126.4,126.37,0.05714407]
[1763848021230,1.66854929,126.39,126.37,0.05714407]
[1763848022132,8.79404929,126.39,126.37,0.05714407]
[1763848022431,1.72707884,126.4,126.37,3.38714407]
[1763848022730,8.85197884,126.4,126.37,3.38714407]
[1763848025727,1.72707884,126.4,126.37,3.38714407]
[1763848026034,0.05852955,126.4,126.37,3.38714407]
[1763848026933,0.05852955,126.4,126.37,10.51354407]
[1763848028132,0.05852955,126.4,126.38,3.15]
[1763848028635,0.05852955,126.4,126.37,0.05714407]
[1763848028935,0.05852955,126.4,126.37,3.20714407]
[1763848032142,0.05852955,126.4,126.37,10.33354407]
[1763848032434,0.05852955,126.4,126.38,3.15]
[1763848035947,0.05852955,126.4,126.38,10.2759]
[1763848036132,0.05852955,126.4,126.39,3.15]
[1763848038640,0.05852955,126.4,126.37,3.20714407]
[1763848040135,0.05852955,126.4,126.38,7.1259]
[1763848040335,0.05852955,126.4,126.39,3.15]
[1763848042240,16.56,126.47,126.4,3.15]
[1763848043135,7.17996181,126.45,126.42,3.20434583]
[1763848045043,0.05786181,126.45,126.42,3.20434583]
[1763848047743,0.05786181,126.45,126.42,10.32794583]
[1763848047947,0.05786181,126.45,126.42,3.20434583]
[1763848049148,0.05786181,126.45,126.44,3.15]
[1763848051657,16.56,126.47,126.46,3.15]
[1763848051945,7.1191,126.51,126.46,3.15]
[1763848052148,2.60927307,126.54,126.46,3.15]
[1763848052454,16.56,126.54,126.46,3.15]
[1763848052645,7.1179,126.53,126.49,3.15]
[1763848052846,0.0511784,126.51,126.49,3.20182927]
[1763848054154,0.0511784,126.51,126.49,10.32152927]
[1763848054754,0.0511784,126.51,126.5,3.15]
[1763848054956,19.16927307,126.56,126.51,3.15]
[1763848054957,16.56,126.56,126.51,3.15]
[1763848055155,113.29047307,126.58,126.51,3.15]
[1763848055356,16.56,126.57,126.51,3.15]
[1763848055747,16.56,126.57,126.52,3.04]
[1763848055947,0.05092269,126.56,126.53,3.09952323]
[1763848056959,0.05092269,126.56,126.53,0.05952323]
[1763848057458,7.1165,126.55,126.53,0.05952323]
[1763848059058,23.6765,126.55,126.53,0.05952323]
[1763848066470,110.7358,126.51,126.42,3.23]
[1763848066663,113.36217307,126.49,126.42,3.23]
[1763848066970,7.121,126.47,126.42,3.23]
[1763848067159,16.58,126.46,126.42,3.23]
[1763848067469,0.0593961,126.45,126.43,3.28825376]
[1763848078378,16.58,126.47,126.44,3.23]
[1763848079477,16.63139788,126.47,126.44,3.23]
[1763848081069,16.63139788,126.47,126.45,3.23]
[1763848081272,0.05139788,126.47,126.45,3.23]
[1763848082983,0.05139788,126.47,126.45,10.3519]
[1763848083179,0.05139788,126.47,126.46,3.23]
[1763848083580,16.56,126.51,126.47,3.23]
[1763848084482,0.02033476,126.5,126.48,0.05883505]
[1763848085686,0.02033476,126.5,126.48,3.28883505]
[1763848086185,0.02033476,126.5,126.48,10.40893505]
[1763848086580,0.02033476,126.5,126.49,3.13]
[1763848086880,16.56,126.55,126.51,3.13]
[1763848087682,16.56,126.55,126.52,0.05569082]
[1763848087888,19.16927307,126.57,126.52,3.18569082]
[1763848090191,19.16927307,126.57,126.52,0.05569082]
[1763848091092,7.1161,126.56,126.52,0.05569082]
[1763848091292,7.1161,126.56,126.52,3.19569082]
[1763848092594,19.16927307,126.57,126.52,3.19569082]
[1763848093697,26.28467307,126.57,126.52,3.19569082]
[1763848094997,8.78230107,126.56,126.52,3.19569082]
[1763848097698,8.78140107,126.58,126.52,3.19569082]
[1763848097998,16.56,126.57,126.52,3.19569082]
[1763848098393,23.6754,126.57,126.52,3.19569082]
[1763848099299,8.78230107,126.56,126.52,3.19569082]
[1763848099499,7.116,126.56,126.52,3.19569082]
[1763848101500,110.6248,126.64,126.52,3.19569082]
[1763848101694,18.22630107,126.6,126.55,3.19436449]
[1763848101890,128.88570107,126.6,126.55,3.19436449]
[1763848103103,7.1148,126.58,126.55,3.19436449]
[1763848103599,18.22630107,126.6,126.55,3.19436449]
[1763848103803,23.674,126.6,126.55,3.19436449]
[1763848107109,16.56,126.6,126.56,3.14]
[1763848108111,16.56,126.6,126.57,3.14]
[1763848109217,8.77910107,126.62,126.58,3.14]
[1763848109509,25.33910107,126.62,126.59,0.0515363]
[1763848109906,16.54,126.63,126.59,3.1915363]
[1763848110110,16.54,126.63,126.59,0.0515363]
[1763848110305,16.54,126.63,126.59,3.1915363]
[1763848110509,23.652,126.63,126.59,3.1915363]
[1763848114508,7.1126,126.62,126.59,3.1915363]
[1763848115015,7.1126,126.62,126.59,0.0515363]
[1763848115603,7.1126,126.62,126.59,3.1915363]
[1763848117114,8.77890107,126.62,126.59,0.0515363]
[1763848118707,8.77890107,126.62,126.59,3.2615363]
[1763848118912,7.1126,126.62,126.59,3.2615363]
[1763848120120,7.1131,126.61,126.59,0.0515363]
[1763848120713,23.6523,126.63,126.59,0.0515363]
[1763848122522,7.1125,126.62,126.59,0.0515363]
[1763848124518,16.54,126.63,126.59,3.3615363]
[1763848125824,16.54,126.63,126.6,3.31]
[1763848126123,16.54,126.63,126.6,10.4235]
[1763848126322,16.54,126.63,126.61,3.31]
[1763848127420,16.54,126.63,126.62,3.31]
[1763848129625,23.6505,126.66,126.62,3.31]
[1763848129826,23.6505,126.66,126.63,0.05254854]
[1763848130228,7.1105,126.66,126.63,0.05254854]
[1763848130430,23.6305,126.66,126.63,0.05254854]
[1763848131130,8.77710107,126.65,126.63,0.05254854]
[1763848131717,112.28270107,126.65,126.58,3.31]
[1763848132026,1.66630107,126.63,126.58,3.31]
[1763848132418,112.28270107,126.65,126.57,3.31]
[1763848132419,1.66630107,126.61,126.57,3.31]
[1763848133532,0.05254855,126.6,126.58,0.06056072]
[1763848133724,0.05254855,126.6,126.58,3.37056072]
[1763848133926,0.05254855,126.6,126.58,0.06056072]
[1763848134127,0.05254855,126.6,126.58,3.37056072]
[1763848135336,0.05254855,126.6,126.58,0.06056072]
[1763848136622,8.83244962,126.6,126.58,0.06056072]
[1763848139934,16.54,126.59,126.58,0.06056072]
[1763848141126,16.54,126.59,126.53,13.07735762]
[1763848141322,1.66630107,126.58,126.53,3.31]
[1763848141727,7.1153,126.57,126.53,3.31]
[1763848142241,0.05594839,126.56,126.54,3.36279792]
[1763848142732,0.05594839,126.56,126.55,10.67321845]
[1763848142938,0.05594839,126.56,126.55,3.31]
[1763848144338,0.05594839,126.56,126.55,10.67321845]
[1763848145142,0.05594839,126.56,126.55,3.31]
[1763848145339,0.05594839,126.56,126.55,10.67321845]
[1763848147241,0.05594839,126.56,126.54,7.41601637]
[1763848147439,0.05594839,126.56,126.54,10.56601637]
[1763848150644,0.05594839,126.56,126.54,7.41601637]
[1763848150946,0.05594839,126.56,126.54,0.05279792]
[1763848151648,8.83824946,126.56,126.54,0.05279792]
[1763848156857,7.17194839,126.56,126.54,0.05279792]
[1763848161158,16.54,126.55,126.54,0.05279792]
[1763848162754,127.2427,126.55,126.51,7.36321845]
[1763848162958,110.7181,126.53,126.47,12.91735762]
[1763848163159,19.14344849,126.52,126.45,12.91735762]
[1763848163460,7.1194,126.5,126.45,3.15]
[1763848163660,16.54,126.49,126.46,3.15]
[1763848163853,16.59303502,126.49,126.46,3.20362454]
[1763848170165,16.59303502,126.49,126.46,0.05362454]
[1763848171062,7.1206,126.48,126.46,0.05362454]
[1763848171663,16.59303502,126.49,126.46,3.20362454]
[1763848174064,0.05303502,126.49,126.46,3.20362454]
[1763848176873,0.05303502,126.49,126.47,3.25]
[1763848177466,23.6587,126.51,126.46,7.17492454]
[1763848177467,7.1179,126.53,126.48,3.25]
[1763848177768,23.6579,126.53,126.48,3.25]
[1763848178559,0.05431428,126.52,126.5,3.25]
[1763848179267,0.05431428,126.52,126.49,0.05223412]
[1763848180067,7.1187,126.51,126.49,0.05223412]
[1763848185271,2.60344849,126.5,126.49,0.05223412]
[1763848185475,113.35234849,126.5,126.44,3.05]
[1763848185675,16.54,126.49,126.44,3.05]
[1763848186482,0.05840075,126.48,126.45,0.0509732]
[1763848187087,7.1211,126.47,126.45,0.0509732]
[1763848189589,0.05840075,126.48,126.45,0.0509732]
[1763848190084,0.05840075,126.48,126.45,3.1009732]
[1763848194185,7.17870075,126.48,126.45,3.1009732]
[1763848194491,0.05840075,126.48,126.45,0.0509732]
[1763848194691,7.121,126.47,126.45,0.0509732]
[1763848196282,16.54,126.46,126.45,0.0509732]
[1763848199694,19.14344849,126.46,126.45,0.0009732]
[1763848199896,110.7885,126.45,126.4,3.05]
[1763848200395,113.40254849,126.44,126.38,12.81735762]
[1763848200585,127.3675,126.43,126.38,3.05]
[1763848200791,0.05514718,126.42,126.39,0.0585765]
[1763848201093,7.1243,126.41,126.39,3.1085765]
[1763848201592,7.1243,126.41,126.39,0.0585765]
[1763848201593,16.56,126.4,126.39,0.0585765]
[1763848202100,16.56,126.4,126.39,3.1085765]
[1763848204391,16.56,126.4,126.39,0.0585765]
[1763848205692,110.8459,126.39,126.34,3.05]
[1763848206800,0.05316086,126.38,126.35,0.05443101]
[1763848206998,16.58,126.37,126.35,0.05443101]
[1763848207200,23.707,126.37,126.35,0.05443101]
[1763848210398,2.60344849,126.36,126.35,0.05443101]
[1763848213011,110.8776,126.35,126.29,3.21]
[1763848213302,19.18344849,126.34,126.27,3.21]
[1763848213609,7.1295,126.32,126.27,3.21]
[1763848213795,16.58,126.31,126.27,3.21]
[1763848213995,0.0540439,126.3,126.28,0.05076359]
[1763848214193,7.1846439,126.3,126.28,0.05076359]
[1763848217414,7.1846439,126.3,126.21,10.3452]
[1763848217415,7.1322,126.27,126.21,10.3452]
[1763848217605,16.58,126.26,126.22,3.21]
[1763848218513,16.58,126.26,126.24,3.21]
[1763848218514,0.05816869,126.25,126.24,3.21]
[1763848219016,0.05816869,126.25,126.24,4.79]
[1763848220020,1.67308119,126.34,126.25,3.21]
[1763848220214,16.6,126.33,126.27,3.21]
[1763848220414,1.67308119,126.32,126.27,3.21]
[1763848220921,0.05880754,126.31,126.28,3.26868232]
[1763848226624,0.05880754,126.31,126.29,3.21]
[1763848228025,0.05880754,126.31,126.3,3.21]
[1763848232126,0.05880754,126.31,126.28,3.26868232]
[1763848239142,1.73188873,126.31,126.28,0.05868232]
[1763848239443,1.67308119,126.29,126.28,0.05868232]
[1763848239936,18.27308119,126.29,126.28,0.05868232]
[1763848247044,16.6,126.29,126.28,0.05868232]
[1763848247839,16.6,126.29,126.28,3.18868232]
[1763848248143,16.6,126.3,126.28,3.18868232]
[1763848249842,23.7305,126.3,126.28,3.18868232]
[1763848252349,1.67308119,126.29,126.28,0.05868232]
[1763848255946,18.27308119,126.29,126.28,3.18868232]
[1763848256151,18.27308119,126.29,126.28,0.05868232]
[1763848258142,18.27308119,126.29,126.28,3.18868232]
[1763848258651,18.27308119,126.29,126.28,0.05868232]
[1763848263459,18.27308119,126.29,126.28,3.18868232]
[1763848263460,16.6,126.29,126.28,3.18868232]
[1763848263849,16.6,126.29,126.28,10.47724733]
[1763848264243,16.6,126.29,126.28,7.34724733]
[1763848264449,18.27308119,126.29,126.28,0.05868232]
[1763848265557,16.6,126.29,126.28,0.05868232]
[1763848271759,16.6,126.29,126.28,10.69423927]
[1763848273062,16.6,126.29,126.28,7.45423927]
[1763848276262,16.6,126.29,126.28,0.05868232]
[1763848276450,16.6,126.29,126.28,7.4653703]
[1763848276652,16.6,126.29,126.28,7.03e-05]
[1763848276856,7.1316,126.28,126.25,13.00735762]
[1763848277361,23.7313,126.29,126.27,3.24]
[1763848277558,23.78498138,126.29,126.27,3.29875619]
[1763848277956,23.78498138,126.29,126.27,13.06611381]
[1763848278556,23.78498138,126.29,126.28,3.24]
[1763848281764,0.05368138,126.29,126.28,3.24]
[1763848282151,0.05368138,126.29,126.27,14.70979263]
[1763848282356,0.05368138,126.29,126.28,13.11935551]
[1763848285166,0.05368138,126.29,126.28,3.24]
[1763848286561,16.6,126.31,126.29,3.24]
[1763848286770,16.6,126.31,126.3,3.24]
[1763848291469,16.6,126.31,126.3,13.11579308]
[1763848291662,0.05543993,126.32,126.31,3.24]
[1763848291857,0.05543993,126.32,126.31,13.11579308]
[1763848293262,0.05543993,126.32,126.31,3.24]
[1763848296374,0.05543993,126.32,126.31,13.11579308]
[1763848298071,7.1276,126.36,126.32,3.01]
[1763848298371,113.4528817,126.4,126.33,3.01]
[1763848298372,16.58,126.39,126.33,3.01]
[1763848298567,16.58,126.39,126.34,3.01]
[1763848298768,16.58,126.39,126.35,3.01]
[1763848299168,0.05298428,126.38,126.36,3.06594631]
[1763848303776,127.3925,126.43,126.36,3.06594631]
[1763848304376,7.1247,126.41,126.37,3.19]
[1763848304672,7.1247,126.41,126.38,0.06005571]
[1763848304878,0.05081012,126.4,126.39,3.19]
[1763848308290,16.58,126.43,126.39,3.19]
[1763848309394,0.05348801,126.42,126.4,3.19]
[1763848309785,7.1212,126.47,126.42,3.19]
[1763848310794,0.05766258,126.46,126.44,3.19]
[1763848314799,2.6137817,126.51,126.44,3.19]
[1763848315093,16.56,126.52,126.44,3.19]
[1763848315497,23.6782,126.52,126.47,3.19]
[1763848315693,0.05629792,126.51,126.48,3.24790056]
[1763848317797,7.17499792,126.51,126.48,3.24790056]
[1763848318695,7.1193,126.5,126.48,0.05790056]
[1763848320303,2.6137817,126.49,126.42,3.19]
[1763848320690,7.1207,126.48,126.42,3.19]
[1763848320891,2.6137817,126.49,126.42,3.19]
[1763848321111,2.6137817,126.49,126.44,0.05503197]
[1763848321396,7.17409419,126.47,126.44,3.24503197]
[1763848321795,0.05299419,126.47,126.44,3.24503197]
[1763848322197,7.1215,126.46,126.44,3.24503197]
[1763848324992,0.05299419,126.47,126.44,3.24503197]
[1763848325307,110.7174,126.53,126.46,3.19]
[1763848326205,7.17305829,126.51,126.48,3.21755184]
[1763848326607,0.05435829,126.51,126.48,3.21755184]
[1763848332211,19.1737817,126.5,126.48,0.05755184]
[1763848332409,129.9254817,126.5,126.42,3.16]
[1763848332706,2.6137817,126.48,126.42,3.16]
[1763848333211,7.1211,126.47,126.42,3.16]
[1763848333512,0.05201611,126.46,126.44,3.16]
[1763848340121,0.05201611,126.46,126.44,10.2824]
[1763848340317,0.05201611,126.46,126.45,3.16]
[1763848342822,1.66800912,126.51,126.46,3.16]
[1763848343726,0.05299186,126.5,126.48,3.16]
[1763848349228,0.05299186,126.5,126.48,10.4562956]
[1763848349419,0.05299186,126.5,126.49,3.16]
[1763848355229,0.05299186,126.5,126.49,10.4562956]
[1763848356333,18.22800912,126.54,126.51,3.04]
[1763848357341,18.22800912,126.54,126.51,3.10076698]
[1763848357526,18.22800912,126.54,126.51,10.39706258]
[1763848357725,18.22800912,126.54,126.52,3.04]
[1763848359822,18.22800912,126.54,126.51,7.35706258]
[1763848360021,18.22800912,126.54,126.51,10.48706258]
[1763848360732,25.34500912,126.54,126.51,10.48706258]
[1763848362829,7.1178,126.53,126.51,7.35706258]
[1763848363134,7.1178,126.53,126.51,0.06076698]
[1763848363333,7.1178,126.53,126.51,3.19076698]
[1763848366626,7.1178,126.53,126.51,0.06076698]
[1763848368637,18.22800912,126.54,126.51,3.19076698]
[1763848368838,18.22800912,126.54,126.52,3.13]
[1763848369134,25.34500912,126.54,126.52,3.13]
[1763848370138,8.78500912,126.54,126.52,3.13]
[1763848374136,8.78440912,126.56,126.52,3.13]
[1763848374338,25.32440912,126.56,126.53,3.13]
[1763848374841,25.32440912,126.56,126.53,10.50344869]
[1763848379642,25.32440912,126.56,126.54,3.13]
[1763848379643,1.66800912,126.56,126.54,3.13]
[1763848379949,8.78330912,126.58,126.55,3.13]
[1763848380336,7.1153,126.57,126.54,10.55828506]
[1763848381637,7.1159,126.56,126.54,10.55828506]
[1763848381842,8.78390912,126.56,126.54,0.05483637]
[1763848382040,1.66800912,126.56,126.54,0.05483637]
[1763848383137,7.1164,126.55,126.54,0.05483637]
[1763848383542,23.6564,126.55,126.54,0.05483637]
[1763848385250,23.6564,126.55,126.54,3.18483637]
[1763848386449,16.54,126.55,126.54,3.18483637]
[1763848387142,16.54,126.55,126.54,10.55828506]
[1763848389643,16.54,126.55,126.54,7.42828506]
[1763848392557,16.54,126.55,126.54,0.05483637]
[1763848394157,16.54,126.55,126.54,10.57828506]
[1763848394956,16.54,126.55,126.54,3.20483637]
[1763848395360,16.54,126.57,126.54,3.20483637]
[1763848395552,16.54,126.57,126.55,10.53150454]
[1763848396261,23.6553,126.57,126.55,10.53150454]
[1763848397758,16.54,126.57,126.56,10.53150454]
[1763848400358,7.1147,126.58,126.56,10.53150454]
[1763848400861,7.1147,126.58,126.57,7.38150454]
[1763848401165,7.1147,126.58,126.56,7.38150454]
[1763848401566,7.1158,126.56,126.55,7.38150454]
[1763848401766,23.6558,126.56,126.54,0.05483637]
[1763848402367,2.60208674,126.55,126.54,0.05483637]
[1763848408370,23.6558,126.56,126.54,0.05483637]
[1763848411163,7.1175,126.53,126.52,7.38150454]
[1763848411366,23.6575,126.53,126.51,7.38150454]
[1763848412170,23.71076811,126.53,126.51,7.43883741]
[1763848412772,26.31285485,126.53,126.51,3.741e-05]
[1763848414665,23.71076811,126.53,126.51,3.741e-05]
[1763848418473,26.31285485,126.53,126.51,3.741e-05]
[1763848418668,110.7286,126.52,126.46,12.92579308]
[1763848418870,110.7443,126.5,126.46,9.87579308]
[1763848419075,110.7443,126.5,126.44,12.92579308]
[1763848419076,16.54,126.49,126.44,12.92579308]
[1763848419276,7.1212,126.47,126.44,12.92579308]
[1763848419478,16.54,126.46,126.44,12.92579308]
[1763848419667,16.60064326,126.46,126.45,3.05]
[1763848420668,16.60064326,126.46,126.45,4.63]
[1763848422077,0.06064326,126.46,126.45,4.63]
[1763848422572,16.54,126.5,126.46,3.05]
[1763848423680,0.05503902,126.49,126.47,3.10062225]
[1763848424382,7.17483902,126.49,126.47,0.05062225]
[1763848426186,9.77692576,126.49,126.47,0.05062225]
[1763848427582,9.77692576,126.49,126.41,3.05]
[1763848427583,7.1226,126.44,126.41,3.05]
[1763848427782,23.6626,126.44,126.41,3.05]
[1763848428580,23.71383508,126.44,126.41,3.1015424]
[1763848429884,16.59123508,126.44,126.41,3.1015424]
[1763848433584,0.05123508,126.44,126.41,3.1015424]
[1763848434288,7.17393508,126.44,126.41,3.1015424]
[1763848435287,7.1206,126.48,126.43,3.05]
[1763848435481,16.54,126.48,126.43,3.05]
[1763848436282,0.05961327,126.47,126.44,3.10462072]
[1763848436989,7.18061327,126.47,126.44,3.10462072]
[1763848440290,0.05961327,126.47,126.44,3.10462072]
[1763848445196,0.05961327,126.47,126.44,10.22702072]
[1763848445400,0.05961327,126.47,126.45,3.05]
[1763848446694,0.05961327,126.47,126.44,0.05462072]
[1763848446695,7.1216,126.46,126.44,0.05462072]
[1763848446999,16.59961327,126.47,126.44,3.27462072]
[1763848447691,0.05961327,126.47,126.44,3.27462072]
[1763848448190,7.18061327,126.47,126.44,3.27462072]
[1763848450900,0.05961327,126.47,126.44,3.27462072]
[1763848452902,7.18051327,126.47,126.44,3.27462072]
[1763848453505,23.72051327,126.47,126.44,3.27462072]
[1763848456805,16.59961327,126.47,126.44,3.27462072]
[1763848458401,0.05961327,126.47,126.45,13.09579308]
[1763848458607,0.05961327,126.47,126.46,3.22]
[1763848463109,0.05961327,126.47,126.46,13.09579308]
[1763848464403,18.20788727,126.5,126.47,3.22]
[1763848465511,18.20788727,126.5,126.47,3.27998885]
[1763848469112,16.54,126.5,126.48,3.22]
[1763848472423,16.54,126.5,126.49,3.22]
[1763848474125,1.66788727,126.52,126.49,3.22]
[1763848476122,8.78598727,126.52,126.49,3.22]
[1763848478515,7.1188,126.51,126.48,3.12]
[1763848480323,7.1188,126.51,126.48,12.99579308]
[1763848480720,1.66788727,126.52,126.48,12.99579308]
[1763848480926,1.66788727,126.52,126.49,3.03]
[1763848482125,8.78598727,126.52,126.49,3.03]
[1763848482315,1.66788727,126.52,126.48,9.87579308]
[1763848482515,1.66788727,126.52,126.47,12.96578193]
[1763848482714,1.66788727,126.52,126.48,3.03]
[1763848483119,7.1192,126.5,126.48,3.03]
[1763848483317,1.66788727,126.52,126.48,3.03]
[1763848483517,110.6793,126.58,126.5,3.03]
[1763848483716,1.66788727,126.56,126.53,0.05370197]
[1763848485126,7.1167,126.55,126.53,0.05370197]
[1763848491031,16.54,126.54,126.53,0.05370197]
[1763848491430,18.20788727,126.54,126.53,0.05370197]
[1763848493828,16.54,126.54,126.53,0.05370197]
[1763848496333,16.54,126.54,126.53,3.08370197]
[1763848496928,16.54,126.54,126.53,0.05370197]
[1763848498538,16.54,126.54,126.53,3.08370197]
[1763848501338,1.66788727,126.57,126.53,3.08370197]
[1763848501542,1.66788727,126.59,126.53,3.08370197]
[1763848501838,7.1153,126.57,126.55,3.08104184]
[1763848502037,8.78318727,126.57,126.55,0.05104184]
[1763848502230,110.6939,126.56,126.52,9.87579308]
[1763848502436,1.66788727,126.54,126.5,9.87579308]
[1763848502634,7.1181,126.52,126.49,12.90579308]
[1763848502938,7.1181,126.52,126.5,3.03]
[1763848503137,25.32598727,126.52,126.48,12.90579308]
[1763848503440,25.37729245,126.52,126.5,0.05036226]
[1763848503641,25.37729245,126.52,126.5,3.08036226]
[1763848505538,16.59130518,126.52,126.5,3.08036226]
[1763848508345,0.05130518,126.52,126.51,3.3]
[1763848510844,0.05130518,126.52,126.5,0.05036226]
[1763848512249,7.16940518,126.52,126.5,0.05036226]
[1763848513043,0.05130518,126.52,126.5,3.35036226]
[1763848514748,0.05130518,126.52,126.51,3.3]
[1763848518350,7.117,126.54,126.51,3.3]
[1763848518554,18.20788727,126.56,126.53,3.3]
[1763848519457,7.1164,126.55,126.53,3.35739614]
[1763848519957,16.54,126.56,126.53,3.35739614]
[1763848520158,16.54,126.56,126.54,3.3]
[1763848521161,23.6559,126.56,126.54,3.3]
[1763848528365,23.6559,126.56,126.53,9.93318922]
[1763848528366,7.1165,126.55,126.53,9.93318922]
[1763848528561,7.1165,126.55,126.53,0.05739614]
[1763848528950,9.7192466,126.55,126.53,0.05739614]
[1763848529763,7.1165,126.55,126.53,0.05739614]
[1763848541673,7.1181,126.52,126.49,9.87579308]
[1763848542069,7.1181,126.52,126.49,13.01579308]
[1763848542673,7.17385023,126.52,126.49,13.07566376]
[1763848542974,7.17385023,126.52,126.5,9.87579308]
[1763848543471,7.17385023,126.52,126.49,13.07566376]
[1763848545670,0.05575023,126.52,126.5,13.01579308]
[1763848549288,0.05575023,126.52,126.51,3.14]
[1763848556488,0.05575023,126.52,126.51,13.01579308]
[1763848559392,0.05575023,126.52,126.51,20.13439308]
[1763848559695,0.05575023,126.52,126.51,10.2586]
[1763848560591,0.05575023,126.52,126.5,17.79103644]
[1763848560796,0.05575023,126.52,126.5,12.99344418]
[1763848561598,7.17385023,126.52,126.5,12.99344418]
[1763848561798,7.17385023,126.52,126.51,3.14]
[1763848562095,7.17385023,126.52,126.5,9.85344418]
[1763848562294,7.1189,126.51,126.49,9.91331486]
[1763848562595,0.05575023,126.52,126.49,9.91331486]
[1763848562596,0.05575023,126.52,126.49,13.05331486]
[1763848564097,7.17385023,126.52,126.49,13.05331486]
[1763848566603,7.1188,126.51,126.49,0.05987068]
[1763848575502,16.54,126.5,126.49,0.05987068]
[1763848582506,23.6592,126.5,126.49,0.05987068]
[1763848586111,7.17435023,126.52,126.49,3.09987068]
[1763848586506,7.17435023,126.52,126.49,12.95331486]
[1763848586811,7.17435023,126.52,126.5,3.04]
[1763848587517,7.17435023,126.52,126.49,3.09987068]
[1763848591014,7.17435023,126.52,126.49,12.95331486]
[1763848591210,7.17435023,126.52,126.5,3.04]
[1763848591412,0.05575023,126.52,126.5,3.04]
[1763848592109,0.05575023,126.52,126.51,3.04]
[1763848593109,0.05575023,126.52,126.5,9.85344418]
[1763848593303,112.45206981,126.52,126.49,0.05987068]
[1763848593508,1.66701958,126.5,126.49,0.05987068]
[1763848594117,1.66701958,126.48,126.45,9.85344418]
[1763848594414,18.20701958,126.48,126.45,3.04]
[1763848595019,18.26039886,126.48,126.45,3.09875229]
[1763848595321,0.05337928,126.48,126.45,3.09875229]
[1763848595524,0.05337928,126.48,126.46,12.89344418]
[1763848595709,0.05337928,126.48,126.47,3.04]
[1763848598322,0.05337928,126.48,126.47,12.89344418]
[1763848598518,1.66701958,126.54,126.48,3.22]
[1763848598822,1.66701958,126.54,126.5,3.22]
[1763848599524,0.05919707,126.53,126.51,0.05995065]
[1763848599826,0.05919707,126.53,126.51,3.27995065]
[1763848600125,7.17679707,126.53,126.51,3.27995065]
[1763848600624,0.05919707,126.53,126.51,3.27995065]
[1763848616542,0.05919707,126.53,126.51,13.13339483]
[1763848616743,1.66701958,126.58,126.53,3.22]
[1763848616944,16.54,126.57,126.53,3.22]
[1763848617336,7.1159,126.56,126.53,3.22]
[1763848617944,7.1159,126.56,126.53,3.27969687]
[1763848622738,7.1164,126.55,126.53,0.05969687]
[1763848622933,1.66701958,126.54,126.53,0.05969687]
[1763848623441,7.1176,126.53,126.5,3.22]
[1763848623640,23.6376,126.53,126.5,3.22]
[1763848624442,23.69610538,126.53,126.5,3.27125019]
[1763848626343,16.57850538,126.53,126.5,3.27125019]
[1763848629546,0.05850538,126.53,126.5,3.27125019]
[1763848630646,0.05850538,126.53,126.5,13.12469437]
[1763848630851,0.05850538,126.53,126.51,3.07]
[1763848632846,0.05850538,126.53,126.52,3.07]
[1763848633342,0.05850538,126.53,126.52,12.92344418]
[1763848636454,18.18701958,126.6,126.54,3.07]
[1763848636944,18.18701958,126.6,126.55,3.07]
[1763848637146,7.1142,126.59,126.55,3.07]
[1763848637349,7.1142,126.59,126.57,3.07]
[1763848640251,1.66701958,126.6,126.57,3.07]
[1763848640458,18.18701958,126.6,126.57,3.07]
[1763848640958,25.30071958,126.6,126.57,3.07]